Cogmind - Beta 17.1 @@@ ROGUE MODE // 2026.09.09 @ 04:15:51 Player: zed Result: Destroyed by YI-UF0 with YI-UF0's Doublenader Performance ------------- Evolutions (0) 0 Regions Visited (2) 400 Robots Destroyed (16) 80 Value Destroyed (348) 348 Prototype IDs (0) 0 Alien Tech Used (0) 0 Bonus (0) 0 TOTAL SCORE: 828 Bonus ------- None Cogmind --------- Core Integrity 0/250 Matter 300/300 Energy 265/265 System Corruption 0% Temperature Cool (0) Movement Core (250) Ox4 Location -10/Mines Parts ------- > --- POWER (1) -------- Improved Ion Engine > --- PROPULSION (2) --- (None) > --- UTILITY (2) ------ Small Storage Unit Visual Processing Unit > --- WEAPON (2) ------- Heavy Assault Rifle > --- INVENTORY (8) ---- Aluminum Leg Hover Unit Medium Storage Unit Targeting Computer Tractor Beam Beam Rifle Light Assault Rifle Grenade Launcher Peak State ------------ > --- POWER ------------ Improved Ion Engine > --- PROPULSION ------- Aluminum Leg Aluminum Leg > --- UTILITY ---------- Heat Sink Large Storage Unit > --- WEAPON ----------- Particle Cannon Assault Rifle > --- INVENTORY -------- Light Ion Engine Wheel Wheel Large Storage Unit Field Recycling Unit Medium Laser Small Laser Light Assault Rifle Grenade Launcher [Rating: 10] Favorites ----------- Power Light Ion Engine Engine Light Ion Engine Propulsion Aluminum Leg Leg Aluminum Leg Wheel Wheel Utility Visual Processing Unit Device Heat Sink Storage Small Storage Unit Processor Visual Processing Unit Protection Propulsion Shielding Weapon Assault Rifle Energy Gun Medium Laser Energy Cannon Particle Cannon Ballistic Gun Assault Rifle Impact Weapon Hammer Build | -11 -10 -10 ------- Run | Yrd Mat Min Slots Evolved . | . . . Power . | . . . Propulsion . | . . . Utility . | . . . Weapon . | . . . Parts Attached 22 | 7 13 2 Power 4 | 1 3 . Engine 4 | 1 3 . Core . | . . . Reactor . | . . . Propulsion 7 | 2 4 1 Treads . | . . . Leg 5 | 2 2 1 Wheel 2 | . 2 . Hover . | . . . Flight . | . . . Utility 5 | 1 4 . Device 1 | 1 . . Storage 2 | . 2 . Processor 1 | . 1 . Hackware . | . . . Protection 1 | . 1 . Artifact . | . . . Weapon 6 | 3 2 1 Energy Gun 1 | 1 . . Energy Cannon 1 | . 1 . Ballistic Gun 3 | 2 . 1 Ballistic Cannon . | . . . Launcher . | . . . Special Weapon . | . . . Impact Weapon 1 | . 1 . Slashing Weapon . | . . . Piercing Weapon . | . . . Special Melee Weapon . | . . . Unidentified Prototypes . | . . . Parts Lost 6 | . 1 5 Power 1 | . . 1 Propulsion 3 | . 1 2 Utility . | . . . Weapon 2 | . . 2 Highest Loss Streak 3 | . 1 3 To Critical Strikes . | . . . Average Backups 6 | 2 7 7 Power . | . 1 . Propulsion 1 | 1 1 2 Utility 1 | . 2 1 Weapon 2 | . 2 2 Tool/Special . | . . . Unused Backups 12 | . 6 6 Power 1 | . 1 . Propulsion 1 | . . 1 Utility 7 | . 4 3 Weapon 3 | . 1 2 Tool/Special . | . . . Average Slot Usage (%) 90 | . 94 86 Engine 13 | . 14 13 Leg 12 | . 7 16 Wheel 10 | . 16 5 Device 3 | . 6 . Storage 12 | . 10 14 Processor 10 | . 7 14 Protection 1 | . 2 . Energy Cannon 7 | . 11 4 Ballistic Gun 14 | . 14 14 Impact Weapon 1 | . . 2 Peak Build Rating 10 | 6 10 9 Average Rating 8 | 4 8 8 On Entrance 5 | . 6 9 Avg Prop Armor Cover (%) . | . . . Naked Turns . | . . . Heaviest Build 34 | 8 34 15 Greatest Support 20 | 20 20 20 Greatest Overweight (x) 4 | . 1 4 Average Overweight (x) . | . . . Largest Inventory Capacity 15 | 5 15 8 Average Capacity 8 | 5 9 8 Most Carried 14 | 5 14 8 Average Carried 6 | 2 7 7 Final Capacity 8 | 5 8 8 Final Carried 8 | 4 8 8 Class Distribution -------------------- 100% | Mutant Dominant Class ---------------- Mutant | -10/Materials Mutant | -10/Mines Resources | -11 -10 -10 ----------- Run | Yrd Mat Min Matter Collected 555 | 275 170 110 Remotely . | . . . Salvage Created 421 | 38 242 141 Parts 24 | 3 16 5 Haulers Intercepted . | . . . Recyclers Shooed . | . . . Parts Field Recycled . | . . . Retrieved Matter . | . . . Parts Self-Destructed . | . . . Prevented . | . . . Parts Restored . | . . . Kills | -11 -10 -10 ------- Run | Yrd Mat Min Combat Hostiles Destroyed 13 | 1 7 5 Guns 7 | 1 3 3 Cannons 4 | . 4 . Classes Destroyed 3 | 1 2 . Watcher 3 | . 3 . Swarmer 7 | . 4 3 Grunt 6 | 1 3 2 Best Kill Streak 3 | 1 3 2 Combat Bots Only 3 | 1 3 2 Max Kills in Single Turn 1 | 1 1 1 Gunslinging . | . . . Exploded . | . . . Melee . | . . . Uniques/NPCs Destroyed . | . . . Combat | -11 -10 -10 -------- Run | Yrd Mat Min Hostile Shots Fired 82 | 6 25 51 Missed 18 | 1 4 13 Hits 64 | 5 21 38 Projectile 64 | 5 21 38 AOE 13 | . . 13 Damage Taken 1002 | 52 207 743 Core 257 | 20 . 237 Absorbed by Shields . | . . . Core Remaining (%) 92 | 92 . . Volleys Fired 44 | 5 25 14 Largest 2 | 2 2 2 Hottest 88 | 70 88 40 Shots Fired 79 | 10 50 19 Gun 56 | 10 27 19 Cannon 23 | . 23 . Launcher . | . . . Special . | . . . Kinetic 49 | 5 25 19 Thermal 30 | 5 25 . Explosive . | . . . Electromagnetic . | . . . Robot Hit Streak 11 | 2 4 11 Robot Miss Streak 4 | 1 4 2 Penetration Max . | . . . Secondary Targets . | . . . Shots Hit Robots 49 | 7 21 21 Core Hits 20 | 2 12 6 Critical Kills . | . . . Critical Parts Destroyed . | . . . Critical Strikes 1 | 1 . . Burn 1 | 1 . . Melee Attacks 12 | . . 12 Impact 12 | . . 12 Slashing . | . . . Piercing . | . . . Sneak Attacks . | . . . Combat Hostiles . | . . . Follow-up Attacks . | . . . Damage Inflicted 726 | 87 345 294 Guns 398 | 87 160 151 Cannons 185 | . 185 . Explosions . | . . . Melee 143 | . . 143 Ramming . | . . . Kinetic 336 | 37 148 151 Thermal 247 | 50 197 . Explosive . | . . . Electromagnetic . | . . . Impact 143 | . . 143 Slashing . | . . . Piercing . | . . . Highest Corruption . | . . . Average Corruption . | . . . Corruption Purged . | . . . Corruption Blocked . | . . . Overload Shots . | . . . Overflow Damage 24 | . . 24 Projectiles . | . . . Explosions . | . . . Melee 24 | . . 24 Knockbacks . | . . . Impact . | . . . Kinetic . | . . . Secondary . | . . . Self-Inflicted Damage . | . . . Shots . | . . . Rammed . | . . . Targets Rammed . | . . . Kicked . | . . . Crushed . | . . . Highest Temperature 206 | 120 206 18 Average Temperature 64 | 58 77 9 Received Heat Transfer 195 | 30 51 114 Siege Activations . | . . . Martial Activations . | . . . Shielding Activations . | . . . Robots Disrupted . | . . . Combat Hostiles . | . . . Robots Corrupted 2 | . . 2 Combat Hostiles 2 | . . 2 Parts Fried 1 | . . 1 Impact Corruptions 3 | . . 3 Robots Melted . | . . . Combat Hostiles . | . . . Parts Melted . | . . . Heat Transferred 592 | 222 370 . Parts Sabotaged . | . . . Parts Stolen . | . . . Parts Stripped . | . . . Power Chain Reactions . | . . . Alert | -11 -10 -10 ------- Run | Yrd Mat Min Maximum Alert Level . | . . . Low Security (%) 100 | 100 100 100 Level 1 . | . . . Level 2 . | . . . Level 3 . | . . . Level 4 . | . . . Level 5 . | . . . High Security . | . . . Max Security . | . . . Peak Influence 126 | 20 126 89 Initial 29 | . 6 29 Average 31 | 3 42 26 Influence Increases 393 | 20 253 120 Destroy 0b10 Robot/C 260 | 20 140 100 Destroy 0b10 Robot/NC 15 | . 15 . Destroy Leader 56 | . 36 20 Destroy Structure 2 | . 2 . Partial Spotted 15 | . 15 . Lose Combat Pursuer 45 | . 45 . Influence Decreases 393 | 10 187 196 Entered New Map 51 | . 4 47 Time Decay 313 | 10 173 130 Lost Part 29 | . 10 19 Squads Dispatched 1 | . 1 . Investigation . | . . . Extermination . | . . . Reinforcement 1 | . 1 . Assault . | . . . Garrison . | . . . Intercept . | . . . Searches Triggered . | . . . Construction Impeded . | . . . Haulers Reinforced . | . . . Active Scanning Responses . | . . . Cargo Convoy Interrupts . | . . . Stealth | -11 -10 -10 --------- Run | Yrd Mat Min Distress Signals 2 | . 1 1 Communications Jammed . | . . . Distress Signals . | . . . Times Spotted 23 | 1 13 9 Peak Tracking Total 4 | 1 4 3 Tactical Retreats 3 | . 2 1 Traps | -11 -10 -10 ------- Run | Yrd Mat Min Traps Triggered . | . . . Indirectly . | . . . Trap Hack Attempts . | . . . Triggered . | . . . Disarmed . | . . . Reprogrammed . | . . . Reused . | . . . Traps Extracted . | . . . Installed 1 | . . 1 Triggered . | . . . Most Traps Carried 1 | . . 1 Machines | -11 -10 -10 ---------- Run | Yrd Mat Min Machines Disabled 1 | . 1 . Max in Single Turn 1 | . 1 . Machines Repaired . | . . . Machines Dismantled . | . . . Machines Sabotaged . | . . . Overloaded Fab Kills . | . . . Hacking | -11 -10 -10 --------- Run | Yrd Mat Min Machines Accessed . | . . . Terminals . | . . . Fabricators . | . . . Repair Stations . | . . . Recycling Units . | . . . Scanalyzers . | . . . Garrison Access . | . . . Total Hacks . | . . . Successful . | . . . Failed . | . . . Catastrophic . | . . . Database Lockouts . | . . . Manual . | . . . Terminals . | . . . Fabricators . | . . . Repair Stations . | . . . Recycling Units . | . . . Scanalyzers . | . . . Garrison Access . | . . . Terminal Hacks . | . . . Fabricator Hacks . | . . . Repair Station Hacks . | . . . Recycling Unit Hacks . | . . . Scanalyzer . | . . . Garrison Access Hacks . | . . . Unauthorized Hacks . | . . . Terminals . | . . . Fabricators . | . . . Repair Stations . | . . . Recycling Units . | . . . Scanalyzers . | . . . Garrison Access . | . . . Data Cores Recovered . | . . . Used . | . . . Hacking Detections . | . . . Full Trace Events . | . . . Feedback Events . | . . . Feedback Blocked . | . . . Robot Schematics Acquired . | . . . Robots Built . | . . . Authchips . | . . . Time . | . . . Total Robot Build Rating . | . . . Part Schematics Acquired . | . . . Parts Built . | . . . Authchips . | . . . Time . | . . . Total Part Build Rating . | . . . Part Studies Acquired . | . . . Parts Repaired . | . . . Time . | . . . Parts Recycled . | . . . Recycled Matter . | . . . Retrieved Matter . | . . . Retrieved Components . | . . . Parts Scanalyzed . | . . . Part Schematics Acquired . | . . . Parts Damaged . | . . . Bothacking | -11 -10 -10 ------------ Run | Yrd Mat Min Used RIF Installer . | . . . Robots Hacked . | . . . Non-combat . | . . . Combat . | . . . Robot Hacks Applied . | . . . Relay Couplers Released . | . . . Fabnet Peak Effective % . | . . . Robots Rewired . | . . . Allies Hacked . | . . . Hacks Repelled . | . . . Allies | -11 -10 -10 -------- Run | Yrd Mat Min Total Allies . | . . . Largest Group . | . . . Highest-Rated Group . | . . . Highest-Rated Ally . | . . . Total Orders . | . . . Ally Attacks . | . . . Total Damage . | . . . Kills . | . . . Allies Corrupted . | . . . Allies Melted . | . . . Intel | -11 -10 -10 ------- Run | Yrd Mat Min Active Infowar (turns) 746 | . 263 483 Optics 746 | . 263 483 Robot Analysis Total . | . . . Derelict Logs Recovered . | . . . Drone Launches . | . . . Drone Recoveries . | . . . Exploration | -11 -10 -10 ------------- Run | Yrd Mat Min Turns Passed 1080 | 104 493 483 Spaces Moved 700 | 71 355 274 Core 16 | 13 . 3 Treads . | . . . Legs 278 | 58 70 150 Wheels 406 | . 285 121 Hover . | . . . Flight . | . . . Fastest Speed 50 | 50 80 95 Average Speed 105 | 107 100 110 Slowest Speed 250 | 120 190 250 Overloaded Moves . | . . . Propulsion Burnouts . | . . . Robots Hopped . | . . . Potential Cave-ins . | . . . Cave-ins Triggered . | . . . Exploration Rate (%) 32 | 7 54 35 Regions Visited 2 Branch Regions 1 Pre-discovered Areas . | . . . Known Exits Taken . | . . . Unknown Exits Taken 2 | 1 1 . Scrap Searched . | . . . Spaces Dug . | . . . Terrain Destroyed . | . . . Melee . | . . . Projectile . | . . . AOE . | . . . Terrain Rammed . | . . . Walls Destroyed . | . . . Machines Disabled . | . . . Actions | -11 -10 -10 --------- Run | Yrd Mat Min Total 946 | 87 443 416 Wait 109 | . 12 97 Move 698 | 70 354 274 Hop . | . . . Pick Up 33 | 5 21 7 Fast Attach 7 | 5 2 . Attach 4 | 1 1 2 Detach 1 | . 1 . Swap 15 | 1 10 4 Drop 22 | . 17 5 Fire 44 | 5 25 14 Melee 12 | . . 12 Ram . | . . . Kick . | . . . Crush . | . . . Escape Stasis . | . . . Rewire . | . . . Trap 1 | . . 1 Miscellaneous . | . . . Route ------- -11/Scrapyard -10/Materials (discovered 3 exits: [*Mat] / [*Min x2]) -10/Mines History --------- Turn | Location | Event 2 | -11/Scrapyard | Met Revision 17 65 | -11/Scrapyard | Discovered new exit (range 8) 105 | -11/Scrapyard | Entered Materials 296 | -10/Materials | Discovered new exit (range 8) 315 | -10/Materials | Build established: Mutant 518 | -10/Materials | Discovered new exit (range 6) 552 | -10/Materials | Discovered new exit (range 10) 598 | -10/Materials | Entered Mines 669 | -10/Mines | Found a hidden stash of uninstalled traps 894 | -10/Mines | Joined a pair of Derelicts in attacking an 0b10 outpost 910 | -10/Mines | Lost 3 parts (1p1n1w) 1069 | -10/Mines | Core integrity fell below 50% 1080 | -10/Mines | Core integrity fell below 20% 1081 | -10/Mines | Destroyed by YI-UF0 with YI-UF0's Doublenader Last Messages --------------- U-05 Engineer lays Concrete. U-05 Engineer builds a Wall. K-01 Serf collects debris. The unstable cave ceiling collapses. K-01 Serf collects debris. The unstable cave ceiling collapses. Imp. Heat Sink crushed. The unstable cave ceiling collapses. U-05 Engineer lays Concrete. U-05 Engineer builds a Wall. K-01 Serf collects debris. The unstable cave ceiling collapses. K-01 Serf collects debris. YI-UF0: "BWOOM!" K-01 Serf destroyed. K-01 Serf collects debris. Wheel destroyed. K-01 Serf collects debris. YI-UF0 mumbles something. The unstable cave ceiling collapses. Map ----- +----------------------------------------------------+ | ???????????????????##"! "##??????????????????????? | | ???????????????????#""|]""#??????????????????????? | | ?????????#####?????# ! %#??????????????????????? | | ????????## ##????##% !###?????????????????????? | | ????????# ##???###++## ##????????????????????? | | ??????### ????# #????????????????????? | | ?????## ## ????# #????????????????????? | | ?????# ??# #????# ##????????????????????? | | ??#### ##?# ##???# ##?????????????????????? | | ??# ### ###?# #??????????????????????? | | ### # # ##### ## #?????????????????????? | | # # #### ### #?????????????????????? | | # #?# #?????????????????????? | | # # ### #?# #?????????????????????? | | / ### #?####?????????????????????? | | # =% ## #??????????????????????????? | | # % # # # #######???????????????????????? | | # #= # # ### ## # ####????????????????????? | | % # #%# ##???????????????????? | | ### # #*# #g #???????????????????? | | ??# ## # ### #???????????????????? | | #?## #### # # #???????????????????? | | ##?# ### ## #???????????????????? | | ### ## # # #???????????????????? | | ## ## #### #???????????????????? | | #??##### ##### @ #???????????????????? | | ?????### % % # #???????????????? | | ?????? # %#### ## # #???????????????? | | ?????# # # # #?# # #???????????????? | | ???????##% ## # ??# ? r #??????????????? | | ????????## #?# # ???# #?? #?????????????? | | ?????????# #?## #? ????# #??? #????????????? | | ?????????# #??###?#?????# #???? #????????????? | | ????????? #????????????# #????? ???????????? | | ?????????###???????????? #????? ??????????? | | ???????????????????????? ??????#####??????????? | | ???????????????????????? ?????????????????????? | | ???????????????????????? ?????????????????????? | | ???????????????????????? ?????????????????????? | | ???????????????????????? ?????????????????????? | | ???????????????????????? ?????????????????????? | | ???????????????????????? ?????????????????????? | | ???????????????????????? ?????????????????????? | | ?????????????????????????????????????????????????? | | ?????????????????????????????????????????????????? | | ?????????????????????????????????????????????????? | | ?????????????????????????????????????????????????? | | ?????????????????????????????????????????????????? | | ?????????????????????????????????????????????????? | | ?????????????????????????????????????????????????? | +----------------------------------------------------+ Best States ------------- Heat Dissipation 35 Energy Generation 12 Energy Capacity 265 Matter Stores 300 Matter Capacity 300 Sight Range 18 Terrain Scan Density 10 Propulsion Shielding 33 Evasion (%) 55 Item Schematics ----------------- None Robot Schematics ------------------ None Fabricated ------------ Nothing Repaired ---------- Nothing Studied --------- None Alien Tech Used ----------------- None Achievements -------------- DATA ERROR: Steam Global Achievement% Organ Harvest Power Corrupts Challenges ------------ None Game ------ Seed GhostLightMatrix Manual? 0 Play Time 00:45:37 Cumulative 3.4 hours Start 2026.09.09 @ 03:26:06 End 2026.09.09 @ 04:15:51 Sessions 1 Manual Loads 0 Difficulty Rogue Special Mode None Game No. 2 Rogue 2 Adventurer 0 Explorer 0 Win Type - Total 0 Types 0/0/0/0/0/0/0/0/0/0 Lore% 0 Gallery% 4 Achievement% 5 Wizard Run 0 Options --------- Layout 1 ASCII 0 Keyboard 0 Movement Numpad Keybinds 0 Fullscreen 2 Font 32/SmallcapsGlow Map View 50x35 Zoom Use 0% Tactical HUD 0 Map Filters NONE Filters NONE Steam 1 RUN: d6dfb5ac-3c1e-4fa7-9de2-76d4a541ba24